[Event "Denmark Team Championship 2022"]
[Site "Denmark"]
[Date "2022.10.30"]
[Round "2.5"]
[White "Klitgaard, Thomas"]
[Black "Hansen, Soren Bech"]
[Result "1/2-1/2"]
[ECO "C02"]
[WhiteElo "2137"]
[BlackElo "2275"]
[Annotator "ChessBase"]
[PlyCount "167"]
[EventDate "2022.10.29"]
[EventType "team-tourn"]
[EventCountry "DEN"]
[SourceTitle "playchess.com"]
[Source "ChessBase"]
[SourceQuality "1"]
[TimeControl "40/5400+30:1800+30"]

1. d4 {[%emt 0:00:36]} e6 {[%emt 0:00:47]} 2. e4 {[%emt 0:01:05]} d5 {[%emt 0:02:22]} 3. e5 {[%emt 0:00:20]} c5 {[%emt 0:00:07]} 4. c3 {[%emt 0:00:03]} Nc6 {[%emt 0:01:09]} 5. Nf3 {[%emt 0:00:14]} Qb6 {[%emt 0:00:24]} 6. Bd3 {[%emt 0:02:04]} Bd7 {[%emt 0:04:27]} 7. dxc5 {[%emt 0:00:38]} Bxc5 {[%emt 0:00:43]} 8. O-O {[%emt 0:00:16]} a5 {[%emt 0:04:45]} 9. Qe2 {[%emt 0:02:28]} Nge7 {[%emt 0:02:18]} 10. h4 {[%emt 0:13:07]} Nf5 {[%emt 0:08:32]} 11. Bf4 {[%emt 0:06:43]} h5 {[%emt 0:04:55]} 12. a4 {[%emt 0:09:34]} Nce7 {[%emt 0:02:55]} 13. Bh2 {[%emt 0:01:56]} Ng6 {[%emt 0:05:38]} 14. Bxf5 {[%emt 0:03:39]} exf5 {[%emt 0:00:11]} 15. c4 {[%emt 0:03:58]} d4 {[%emt 0:04:15]} 16. Nbd2 {[%emt 0:06:14]} Be6 {[%emt 0:01:47]} 17. Qd3 {[%emt 0:04:49]} Rd8 {[%emt 0:09:39]} 18. Nb3 {[%emt 0:07:29]} O-O {[%emt 0:06:33]} 19. Nxc5 {[%emt 0:07:00]} Qxc5 {[%emt 0:00:10]} 20. b3 {[%emt 0:00:04]} Rd7 {[%emt 0:03:40]} 21. Ng5 {[%emt 0:03:55]} Qc6 {[%emt 0:08:25]} 22. Rad1 {[%emt 0:07:53]} Re8 {[%emt 0:03:50]} 23. Rd2 {[%emt 0:01:58]} f4 {[%emt 0:06:32]} 24. Qe4 {[%emt 0:03:21]} Qxe4 {[%emt 0:03:59]} 25. Nxe4 {[%emt 0:00:04]} Bf5 {[%emt 0:00:58]} 26. Nd6 {[%emt 0:00:48]} Rxe5 {[%emt 0:00:26]} 27. Rxd4 {[%emt 0:00:39]} Bc2 {[%emt 0:01:48]} 28. Nb5 {[%emt 0:01:57]} Ree7 {[%emt 0:01:19]} 29. c5 {[%emt 0:03:21]} Bxb3 {[%emt 0:01:26]} 30. Nd6 {[%emt 0:00:22]} Re5 {[%emt 0:01:43]} 31. Rc1 {[%emt 0:02:47]} Rd5 {[%emt 0:03:01]} 32. Rxd5 {[%emt 0:00:38]} Bxd5 {[%emt 0:00:07]} 33. Rd1 {[%emt 0:00:53]} Bc6 {[%emt 0:01:21]} 34. Rd4 {[%emt 0:00:32]} f3 {[%emt 0:01:48]} 35. g4 {[%emt 0:01:02]} Re7 {[%emt 0:01:09]} 36. Bg3 {[%emt 0:00:54]} hxg4 {[%emt 0:01:05]} 37. Rxg4 {[%emt 0:01:01]} Re1+ {[%emt 0:01:08]} 38. Kh2 {[%emt 0:00:07]} Ne5 {[%emt 0:00:19]} 39. Rd4 {[%emt 0:01:21]} f6 {[%emt 0:01:26]} 40. h5 {[%emt 0:03:36]} Rc1 {[%emt 0:02:20]} 41. Bxe5 {[%emt 0:01:22]} fxe5 {[%emt 0:03:13]} 42. Rg4 {[%emt 0:01:50]} Rf1 {[%emt 0:03:58]} 43. Ne4 {[%emt 0:10:35]} Bxe4 {[%emt 0:02:41]} 44. Rxe4 {[%emt 0:00:09]} Rxf2+ {[%emt 0:00:29]} 45. Kg3 {[%emt 0:00:12]} Rg2+ {[%emt 0:03:28]} 46. Kxf3 {[%emt 0:00:40]} Rg5 {[%emt 0:00:05]} 47. Rc4 {[%emt 0:02:39]} Rxh5 {[%emt 0:00:43]} 48. Kg4 {[%emt 0:02:29]} Rh1 {[%emt 0:01:26]} 49. c6 {[%emt 0:02:22]} bxc6 {[%emt 0:00:09]} 50. Rxc6 {[%emt 0:00:28]} Rf1 {[%emt 0:07:37]} 51. Rc5 {[%emt 0:04:29]} Rf4+ {[%emt 0:01:17]} 52. Kg5 {[%emt 0:03:03]} Rxa4 {[%emt 0:01:23]} 53. Rxe5 {[%emt 0:00:09]} Kh7 {[%emt 0:01:38]} 54. Rb5 {[%emt 0:00:13]} Ra1 {[%emt 0:01:26]} 55. Kg4 {[%emt 0:00:30]} a4 {[%emt 0:01:49]} 56. Ra5 {[%emt 0:00:07]} a3 {[%emt 0:00:12]} 57. Kh3 {[%emt 0:00:15]} Kg6 {[%emt 0:00:12]} 58. Kg2 {[%emt 0:00:27]} Kf6 {[%emt 0:00:03]} 59. Ra7 {[%emt 0:00:25]} g6 {[%emt 0:02:00]} 60. Ra5 {[%emt 0:00:56]} g5 {[%emt 0:02:15]} 61. Kh2 {[%emt 0:00:30]} g4 {[%emt 0:00:33]} 62. Kg2 {[%emt 0:01:16]} Ke6 {[%emt 0:00:04]} 63. Ra4 {[%emt 0:00:13]} Kd5 {[%emt 0:01:12]} 64. Rxg4 {[%emt 0:00:14]} Rc1 {[%emt 0:00:30]} 65. Ra4 {[%emt 0:00:30]} Rc3 {[%emt 0:00:03]} 66. Kf2 {[%emt 0:00:35]} Kc5 {[%emt 0:00:22]} 67. Ke2 {[%emt 0:00:35]} Kb5 {[%emt 0:00:09]} 68. Ra8 {[%emt 0:00:06]} Kb4 {[%emt 0:00:12]} 69. Kd2 {[%emt 0:01:46]} Rc7 {[%emt 0:00:23]} 70. Rb8+ {[%emt 0:01:26]} Ka4 {[%emt 0:00:05]} 71. Ra8+ {[%emt 0:00:29]} Kb3 {[%emt 0:00:06]} 72. Rb8+ {[%emt 0:00:12]} Ka2 {[%emt 0:00:10]} 73. Rb6 {[%emt 0:00:34]} Ka1 {[%emt 0:00:38]} 74. Rb8 {[%emt 0:00:32]} a2 {[%emt 0:00:15]} 75. Rb6 {[%emt 0:00:13]} Rh7 {[%emt 0:00:28]} 76. Kc2 {[%emt 0:00:24]} Rh2+ {[%emt 0:00:09]} 77. Kc1 {[%emt 0:01:09]} Rh1+ {[%emt 0:00:03]} 78. Kc2 {[%emt 0:00:06]} Rb1 {[%emt 0:00:11]} 79. Rc6 {[%emt 0:01:21]} Rb2+ {[%emt 0:01:30]} 80. Kc1 {[%emt 0:00:09]} Rh2 {[%emt 0:00:13]} 81. Rc8 {[%emt 0:01:26]} Rh7 {[%emt 0:02:56]} 82. Rc6 {[%emt 0:00:12]} Rh1+ {[%emt 0:00:55]} 83. Kc2 {[%emt 0:00:13]} Rc1+ {[%emt 0:00:10]} 84. Kxc1 {[%emt 0:00:09]} 1/2-1/2

[Event "Denmark Team Championship 2022"]
[Site "Denmark"]
[Date "2022.10.30"]
[Round "2.6"]
[White "Pedersen, Nicolai Vesterbaek"]
[Black "Ahlander, Bjorn"]
[Result "1/2-1/2"]
[ECO "E36"]
[WhiteElo "2367"]
[BlackElo "2406"]
[Annotator "ChessBase"]
[PlyCount "47"]
[EventDate "2022.10.29"]
[EventType "team-tourn"]
[EventCountry "DEN"]
[SourceTitle "playchess.com"]
[Source "ChessBase"]
[SourceQuality "1"]
[TimeControl "40/5400+30:1800+30"]

1. d4 {[%emt 0:00:01]} Nf6 {[%emt 0:00:12]} 2. c4 {[%emt 0:00:11]} e6 {[%emt 0:00:05]} 3. Nc3 {[%emt 0:00:13]} Bb4 {[%emt 0:00:14]} 4. Qc2 {[%emt 0:00:29]} d5 {[%emt 0:00:39]} 5. a3 {[%emt 0:00:53]} Bxc3+ {[%emt 0:00:08]} 6. Qxc3 {[%emt 0:00:19]} O-O {[%emt 0:00:19]} 7. Nf3 {[%emt 0:09:14]} dxc4 {[%emt 0:00:49]} 8. Qxc4 {[%emt 0:05:03]} b6 {[%emt 0:00:09]} 9. Bg5 {[%emt 0:04:05]} Ba6 {[%emt 0:01:45]} 10. Qa4 {[%emt 0:01:30]} Qd7 {[%emt 0:05:47]} 11. Qc2 {[%emt 0:05:27]} c5 {[%emt 0:03:43]} 12. dxc5 {[%emt 0:04:40]} bxc5 {[%emt 0:03:41]} 13. g3 {[%emt 0:09:36]} Qb5 {[%emt 0:05:55]} 14. Bg2 {[%emt 0:13:38]} Nbd7 {[%emt 0:01:26]} 15. a4 {[%emt 0:01:55]} Qb6 {[%emt 0:05:02]} 16. O-O {[%emt 0:01:03]} Rab8 {[%emt 0:01:20]} 17. Rab1 {[%emt 0:07:17]} Bb7 {[%emt 0:02:25]} 18. Bxf6 {[%emt 0:02:01]} Nxf6 {[%emt 0:02:24]} 19. Ne5 {[%emt 0:01:59]} Bxg2 {[%emt 0:03:16]} 20. Kxg2 {[%emt 0:00:05]} Nd7 {[%emt 0:04:59]} 21. Nxd7 {[%emt 0:03:27]} Qc6+ {[%emt 0:00:02]} 22. e4 {[%emt 0:01:36]} Qxd7 {[%emt 0:00:04]} 23. Rfd1 {[%emt 0:00:41]} Qb7 {[%emt 0:03:53]} 24. Rd6 {[%emt 0:03:41]} 1/2-1/2

[Event "Denmark Team Championship 2022"]
[Site "Denmark"]
[Date "2022.10.30"]
[Round "2.6"]
[White "Hoi, Carsten"]
[Black "Jacobsen, Mikkel Manosri"]
[Result "0-1"]
[ECO "D31"]
[WhiteElo "2344"]
[BlackElo "2267"]
[Annotator "ChessBase"]
[PlyCount "68"]
[EventDate "2022.10.29"]
[EventType "team-tourn"]
[EventCountry "DEN"]
[SourceTitle "playchess.com"]
[Source "ChessBase"]
[SourceQuality "1"]
[TimeControl "40/5400+30:1800+30"]

1. d4 {[%emt 0:00:45]} d5 {[%emt 0:00:04]} 2. c4 {[%emt 0:00:27]} e6 {[%emt 0:00:06]} 3. Nc3 {[%emt 0:00:25]} a6 {[%emt 0:00:07]} 4. cxd5 {[%emt 0:02:42]} exd5 {[%emt 0:00:03]} 5. Nf3 {[%emt 0:00:47]} h6 {[%emt 0:00:05]} 6. Bf4 {[%emt 0:03:37]} Nf6 {[%emt 0:00:35]} 7. e3 {[%emt 0:05:01]} Bd6 {[%emt 0:00:14]} 8. Bg3 {[%emt 0:04:08]} Bf5 {[%emt 0:03:53]} 9. Bh4 {[%emt 0:05:35]} c6 {[%emt 0:01:43]} 10. Ne5 {[%emt 0:07:26]} Qb6 {[%emt 0:05:17]} 11. Bd3 {[%emt 0:05:26]} Qxb2 {[%emt 0:21:35]} 12. O-O {[%emt 0:15:33]} Qxc3 {[%emt 0:11:57]} 13. Rc1 {[%emt 0:03:28]} Qa5 {[%emt 0:16:38]} 14. Bxf5 {[%emt 0:02:29]} Be7 {[%emt 0:07:20]} 15. f4 {[%emt 0:05:05]} g6 {[%emt 0:04:42]} 16. Bxg6 {[%emt 0:13:25]} fxg6 {[%emt 0:00:52]} 17. Bxf6 {[%emt 0:00:57]} Bxf6 {[%emt 0:00:19]} 18. Qg4 {[%emt 0:00:50]} O-O {[%emt 0:06:06]} 19. Qxg6+ {[%emt 0:05:20]} Bg7 {[%emt 0:00:02]} 20. f5 {[%emt 0:03:19]} Qa3 {[%emt 0:04:14]} 21. Qe6+ {[%emt 0:07:21]} Kh7 {[%emt 0:00:51]} 22. Ng4 {[%emt 0:00:24]} Qd3 {[%emt 0:04:45]} 23. Rf3 {[%emt 0:04:20]} Qe4 {[%emt 0:06:23]} 24. Qg6+ {[%emt 0:01:32]} Kh8 {[%emt 0:00:00]} 25. Ne5 {[%emt 0:00:40]} Qh4 {[%emt 0:04:14]} 26. Nf7+ {[%emt 0:01:45]} Kg8 {[%emt 0:00:22]} 27. Rh3 {[%emt 0:00:31]} Qxh3 {[%emt 0:00:02]} 28. gxh3 {[%emt 0:00:28]} Rxf7 {[%emt 0:00:02]} 29. Kh1 {[%emt 0:00:36]} Nd7 {[%emt 0:00:09]} 30. Rg1 {[%emt 0:00:12]} Re8 {[%emt 0:01:48]} 31. Qxh6 {[%emt 0:00:28]} Ree7 {[%emt 0:00:05]} 32. Rxg7+ {[%emt 0:00:45]} Rxg7 {[%emt 0:00:08]} 33. f6 {[%emt 0:00:05]} Nxf6 {[%emt 0:00:32]} 34. Qxf6 {[%emt 0:00:02]} Ref7 {[%emt 0:00:29]} 0-1

[Event "Denmark Team Championship 2022"]
[Site "Denmark"]
[Date "2022.10.30"]
[Round "2.6"]
[White "Baekgaard, Martin"]
[Black "Ostergaard, Jens"]
[Result "0-1"]
[ECO "A62"]
[WhiteElo "2296"]
[BlackElo "2253"]
[Annotator "ChessBase"]
[PlyCount "58"]
[EventDate "2022.10.29"]
[EventType "team-tourn"]
[EventCountry "DEN"]
[SourceTitle "playchess.com"]
[Source "ChessBase"]
[SourceQuality "1"]
[TimeControl "40/5400+30:1800+30"]

1. d4 {[%emt 0:00:05]} Nf6 {[%emt 0:00:10]} 2. c4 {[%emt 0:00:11]} e6 {[%emt 0:00:09]} 3. Nc3 {[%emt 0:00:05]} c5 {[%emt 0:00:09]} 4. d5 {[%emt 0:00:27]} exd5 {[%emt 0:00:10]} 5. cxd5 {[%emt 0:00:05]} d6 {[%emt 0:00:12]} 6. Nf3 {[%emt 0:00:41]} g6 {[%emt 0:00:14]} 7. g3 {[%emt 0:00:27]} Bg7 {[%emt 0:00:31]} 8. Bg2 {[%emt 0:00:06]} O-O {[%emt 0:00:21]} 9. O-O {[%emt 0:00:05]} a6 {[%emt 0:00:22]} 10. a4 {[%emt 0:00:05]} Re8 {[%emt 0:01:17]} 11. Bf4 {[%emt 0:01:48]} Nh5 {[%emt 0:02:08]} 12. Bg5 {[%emt 0:01:28]} Qc7 {[%emt 0:07:36]} 13. h3 {[%emt 0:20:15]} Nd7 {[%emt 0:14:48]} 14. e4 {[%emt 0:12:50]} Rb8 {[%emt 0:22:47]} 15. g4 {[%emt 0:32:03]} Nhf6 {[%emt 0:00:23]} 16. Nd2 {[%emt 0:02:03]} b5 {[%emt 0:13:28]} 17. axb5 {[%emt 0:00:04]} axb5 {[%emt 0:00:05]} 18. Qc2 {[%emt 0:00:26]} c4 {[%emt 0:05:14]} 19. Rac1 {[%emt 0:05:19]} Ba6 {[%emt 0:06:20]} 20. Nd1 {[%emt 0:03:53]} Rbc8 {[%emt 0:06:20]} 21. b4 {[%emt 0:01:47]} Ne5 {[%emt 0:03:03]} 22. Nc3 {[%emt 0:09:08]} Nd3 {[%emt 0:01:23]} 23. Ra1 {[%emt 0:01:39]} Ra8 {[%emt 0:01:53]} 24. Rfb1 {[%emt 0:00:11]} h5 {[%emt 0:02:30]} 25. Ra3 {[%emt 0:04:08]} hxg4 {[%emt 0:00:27]} 26. h4 {[%emt 0:00:57]} Nh5 {[%emt 0:01:06]} 27. Nxb5 {[%emt 0:01:18]} Bxb5 {[%emt 0:06:37]} 28. Rxd3 {[%emt 0:00:09]} Qa7 {[%emt 0:00:50]} 29. Re3 {[%emt 0:02:19]} f6 {[%emt 0:00:28]} 0-1

[Event "Denmark Team Championship 2022"]
[Site "Denmark"]
[Date "2022.10.30"]
[Round "2.6"]
[White "Larsen, Karsten"]
[Black "Abildlund, Jens"]
[Result "1-0"]
[ECO "B00"]
[WhiteElo "2241"]
[BlackElo "2183"]
[Annotator "ChessBase"]
[PlyCount "132"]
[EventDate "2022.10.29"]
[EventType "team-tourn"]
[EventCountry "DEN"]
[SourceTitle "playchess.com"]
[Source "ChessBase"]
[SourceQuality "1"]
[TimeControl "40/5400+30:1800+30"]

1. e4 {[%emt 0:00:20]} d6 {[%emt 0:00:15]} 2. d4 {[%emt 0:00:33]} e5 {[%emt 0:00:19]} 3. d5 {[%emt 0:04:44]} Nf6 {[%emt 0:00:42]} 4. f3 {[%emt 0:05:08]} Be7 {[%emt 0:01:38]} 5. Be3 {[%emt 0:01:22]} O-O {[%emt 0:00:42]} 6. Qd2 {[%emt 0:02:08]} Ne8 {[%emt 0:06:30]} 7. Bd3 {[%emt 0:07:16]} h6 {[%emt 0:02:04]} 8. Ne2 {[%emt 0:04:03]} Bg5 {[%emt 0:00:27]} 9. f4 {[%emt 0:02:51]} exf4 {[%emt 0:00:31]} 10. Nxf4 {[%emt 0:00:08]} Nd7 {[%emt 0:01:03]} 11. Nc3 {[%emt 0:03:00]} Ne5 {[%emt 0:01:57]} 12. O-O-O {[%emt 0:01:03]} c5 {[%emt 0:01:11]} 13. dxc6 {[%emt 0:07:34]} bxc6 {[%emt 0:00:32]} 14. g3 {[%emt 0:01:09]} Qa5 {[%emt 0:02:31]} 15. Be2 {[%emt 0:02:23]} Rb8 {[%emt 0:12:28]} 16. a3 {[%emt 0:09:02]} Bg4 {[%emt 0:04:30]} 17. Rhf1 {[%emt 0:07:39]} Bf6 {[%emt 0:09:30]} 18. h3 {[%emt 0:17:31]} Bxe2 {[%emt 0:02:58]} 19. Qxe2 {[%emt 0:00:18]} Nd7 {[%emt 0:11:12]} 20. Bd4 {[%emt 0:01:08]} Be5 {[%emt 0:02:21]} 21. Qc4 {[%emt 0:08:58]} Nef6 {[%emt 0:00:28]} 22. Ng6 {[%emt 0:01:34]} Nb6 {[%emt 0:05:58]} 23. Ne7+ {[%emt 0:00:35]} Kh8 {[%emt 0:01:58]} 24. Qxc6 {[%emt 0:04:26]} Rfe8 {[%emt 0:08:00]} 25. Bxe5 {[%emt 0:03:18]} Qxe5 {[%emt 0:00:54]} 26. Nf5 {[%emt 0:00:06]} Re6 {[%emt 0:11:35]} 27. Nxd6 {[%emt 0:00:55]} Kg8 {[%emt 0:00:29]} 28. Qc7 {[%emt 0:01:39]} Rf8 {[%emt 0:00:17]} 29. Ndb5 {[%emt 0:00:48]} Qg5+ {[%emt 0:00:46]} 30. Qf4 {[%emt 0:00:12]} Qc5 {[%emt 0:01:15]} 31. Qf2 {[%emt 0:01:00]} Qe7 {[%emt 0:00:38]} 32. Rfe1 {[%emt 0:01:23]} Nh5 {[%emt 0:03:22]} 33. g4 {[%emt 0:00:46]} Qg5+ {[%emt 0:00:54]} 34. Kb1 {[%emt 0:01:08]} Nf4 {[%emt 0:00:12]} 35. Qf3 {[%emt 0:01:06]} Qe5 {[%emt 0:01:03]} 36. Nd4 {[%emt 0:00:26]} Rf6 {[%emt 0:00:42]} 37. Nf5 {[%emt 0:00:11]} Nc4 {[%emt 0:00:28]} 38. b3 {[%emt 0:00:39]} Rb8 {[%emt 0:00:52]} 39. Ka2 {[%emt 0:00:26]} Na5 {[%emt 0:01:30]} 40. Nd5 {[%emt 0:00:40]} Nxd5 {[%emt 0:01:34]} 41. exd5 {[%emt 0:30:48]} Qc7 {[%emt 0:30:30]} 42. Qd3 {[%emt 0:00:00]} Rd8 {[%emt 0:00:00]} 43. Re2 {[%emt 0:00:00]} Nb7 {[%emt 0:00:00]} 44. Rde1 {[%emt 0:00:00]} Nc5 {[%emt 0:00:00]} 45. Qc3 {[%emt 0:00:00]} a5 {[%emt 0:00:00]} 46. Qc4 {[%emt 0:00:00]} Kh7 {[%emt 0:00:00]} 47. Re3 {[%emt 0:00:00]} Qb6 {[%emt 0:00:00]} 48. Rc3 {[%emt 0:00:00]} Na6 {[%emt 0:00:00]} 49. Rd1 {[%emt 0:00:00]} g6 {[%emt 0:00:00]} 50. Ng3 {[%emt 0:00:00]} Rfd6 {[%emt 0:00:00]} 51. Ne4 {[%emt 0:00:00]} Nb4+ {[%emt 0:00:00]} 52. axb4 {[%emt 0:01:28]} axb4 {[%emt 0:00:00]} 53. Rf3 {[%emt 0:00:31]} Qa5+ {[%emt 0:00:00]} 54. Kb1 {[%emt 0:00:26]} Ra8 {[%emt 0:00:00]} 55. Kc1 {[%emt 0:01:37]} Rdd8 {[%emt 0:02:44]} 56. Nf6+ {[%emt 0:00:49]} Kg7 {[%emt 0:00:32]} 57. Qd4 {[%emt 0:00:08]} Kf8 {[%emt 0:01:03]} 58. Rdf1 {[%emt 0:01:54]} Ra7 {[%emt 0:00:19]} 59. Kd2 {[%emt 0:00:29]} Rc7 {[%emt 0:00:08]} 60. h4 {[%emt 0:00:31]} Qa2 {[%emt 0:00:19]} 61. Qxb4+ {[%emt 0:00:21]} Kg7 {[%emt 0:00:10]} 62. Rc3 {[%emt 0:00:28]} Ra7 {[%emt 0:00:19]} 63. Qd4 {[%emt 0:00:14]} Kf8 {[%emt 0:00:10]} 64. h5 {[%emt 0:00:32]} g5 {[%emt 0:00:16]} 65. Re1 {[%emt 0:00:25]} Qa6 {[%emt 0:00:07]} 66. Ne8 {[%emt 0:01:35]} Rda8 1-0

[Event "Denmark Team Championship 2022"]
[Site "Denmark"]
[Date "2022.10.30"]
[Round "2.6"]
[White "Rewitz, Poul"]
[Black "Schmidt, Kristen"]
[Result "1/2-1/2"]
[ECO "A00"]
[WhiteElo "2172"]
[BlackElo "2273"]
[Annotator "ChessBase"]
[PlyCount "137"]
[EventDate "2022.10.29"]
[EventType "team-tourn"]
[EventCountry "DEN"]
[SourceTitle "playchess.com"]
[Source "ChessBase"]
[SourceQuality "1"]
[TimeControl "40/5400+30:1800+30"]

1. g3 {[%emt 0:00:44]} c5 {[%emt 0:00:28]} 2. Bg2 {[%emt 0:00:40]} Nc6 {[%emt 0:00:30]} 3. Nf3 {[%emt 0:00:58]} g6 {[%emt 0:01:22]} 4. d4 {[%emt 0:01:25]} cxd4 {[%emt 0:01:37]} 5. Nxd4 {[%emt 0:00:20]} Bg7 {[%emt 0:00:36]} 6. Nxc6 {[%emt 0:00:48]} bxc6 {[%emt 0:01:33]} 7. O-O {[%emt 0:00:32]} Nf6 {[%emt 0:06:26]} 8. c4 {[%emt 0:00:44]} O-O {[%emt 0:01:59]} 9. Nc3 {[%emt 0:00:24]} Rb8 {[%emt 0:05:28]} 10. Qc2 {[%emt 0:01:56]} Qc7 {[%emt 0:06:55]} 11. Bf4 {[%emt 0:13:10]} e5 {[%emt 0:06:05]} 12. Bg5 {[%emt 0:00:46]} d6 {[%emt 0:01:11]} 13. b3 {[%emt 0:04:54]} h6 {[%emt 0:00:44]} 14. Bd2 {[%emt 0:03:18]} d5 {[%emt 0:11:07]} 15. cxd5 {[%emt 0:03:33]} cxd5 {[%emt 0:00:03]} 16. Rac1 {[%emt 0:08:06]} Bf5 {[%emt 0:02:14]} 17. Qb2 {[%emt 0:11:07]} Qd7 {[%emt 0:03:26]} 18. Rfd1 {[%emt 0:02:48]} d4 {[%emt 0:01:33]} 19. Nb1 {[%emt 0:02:15]} Be4 {[%emt 0:02:33]} 20. Bxe4 {[%emt 0:10:29]} Nxe4 {[%emt 0:00:04]} 21. Qc2 {[%emt 0:01:34]} f5 {[%emt 0:06:20]} 22. Qc6 {[%emt 0:03:10]} Qf7 {[%emt 0:01:45]} 23. Qc4 {[%emt 0:00:55]} Nd6 {[%emt 0:03:06]} 24. Qxf7+ {[%emt 0:00:52]} Rxf7 {[%emt 0:00:08]} 25. Rc6 {[%emt 0:01:36]} Rd7 {[%emt 0:02:32]} 26. Rdc1 {[%emt 0:01:27]} Kf7 {[%emt 0:01:48]} 27. Ba5 {[%emt 0:06:04]} Rbb7 {[%emt 0:02:48]} 28. Na3 {[%emt 0:02:47]} e4 {[%emt 0:02:27]} 29. Kf1 {[%emt 0:03:09]} d3 {[%emt 0:08:10]} 30. Rd1 {[%emt 0:04:59]} Nb5 {[%emt 0:03:46]} 31. Nxb5 {[%emt 0:02:23]} Rxb5 {[%emt 0:00:06]} 32. Rc7 {[%emt 0:01:37]} Rxc7 {[%emt 0:06:01]} 33. Bxc7 {[%emt 0:00:10]} Rd5 {[%emt 0:00:25]} 34. Bf4 {[%emt 0:02:24]} g5 {[%emt 0:04:17]} 35. Bd2 {[%emt 0:00:44]} Bb2 {[%emt 0:02:55]} 36. Rb1 {[%emt 0:01:37]} Bd4 {[%emt 0:00:42]} 37. Rd1 {[%emt 0:03:19]} Ke6 {[%emt 0:03:20]} 38. Rc1 {[%emt 0:00:21]} dxe2+ {[%emt 0:00:50]} 39. Kxe2 {[%emt 0:00:07]} Bxf2 {[%emt 0:00:21]} 40. Rc6+ {[%emt 0:00:22]} Kf7 {[%emt 0:01:50]} 41. Rxh6 {[%emt 0:31:41]} g4 {[%emt 0:30:07]} 42. Ra6 {[%emt 0:00:00]} Bg1 {[%emt 0:00:00]} 43. Be3 {[%emt 0:00:00]} Bxe3 {[%emt 0:00:00]} 44. Kxe3 {[%emt 0:00:00]} Rd3+ {[%emt 0:00:00]} 45. Ke2 {[%emt 0:00:00]} Rd7 {[%emt 0:00:00]} 46. b4 {[%emt 0:00:00]} Rc7 {[%emt 0:00:00]} 47. b5 {[%emt 0:00:00]} Ke7 {[%emt 0:00:00]} 48. a4 {[%emt 0:00:00]} Kd8 {[%emt 0:00:00]} 49. Ke3 {[%emt 0:00:00]} Kc8 {[%emt 0:00:00]} 50. Kf4 {[%emt 0:00:00]} Rf7 {[%emt 0:00:00]} 51. Rc6+ {[%emt 0:00:00]} Kb7 {[%emt 0:00:00]} 52. a5 {[%emt 0:00:00]} Kb8 {[%emt 0:00:00]} 53. Re6 {[%emt 0:00:00]} Kc7 {[%emt 0:00:00]} 54. Rc6+ {[%emt 0:00:00]} Kb8 {[%emt 0:00:00]} 55. Rc5 {[%emt 0:00:00]} Kb7 {[%emt 0:00:00]} 56. Rc3 {[%emt 0:00:37]} Rc7 {[%emt 0:00:44]} 57. Rb3 {[%emt 0:00:57]} Rc5 {[%emt 0:00:21]} 58. Rb1 {[%emt 0:05:22]} a6 {[%emt 0:01:16]} 59. bxa6+ {[%emt 0:00:19]} Kxa6 {[%emt 0:00:06]} 60. h3 {[%emt 0:01:47]} gxh3 {[%emt 0:01:52]} 61. Rh1 {[%emt 0:00:14]} Kxa5 {[%emt 0:00:12]} 62. Rxh3 {[%emt 0:00:12]} Kb5 {[%emt 0:00:40]} 63. g4 {[%emt 0:01:00]} fxg4 {[%emt 0:00:07]} 64. Re3 {[%emt 0:00:14]} Rc4 {[%emt 0:00:56]} 65. Rxe4 {[%emt 0:00:19]} Rxe4+ {[%emt 0:00:07]} 66. Kxe4 {[%emt 0:00:05]} g3 {[%emt 0:00:06]} 67. Ke3 {[%emt 0:00:08]} g2 {[%emt 0:00:03]} 68. Kf2 {[%emt 0:00:05]} g1=Q+ {[%emt 0:00:08]} 69. Kxg1 {[%emt 0:00:07]} 1/2-1/2

[Event "Denmark Team Championship 2022"]
[Site "Denmark"]
[Date "2022.10.30"]
[Round "2.7"]
[White "Kristensen, Kaare Hove"]
[Black "Pedersen, Gunnar"]
[Result "0-1"]
[ECO "B07"]
[WhiteElo "2267"]
[BlackElo "2221"]
[Annotator "ChessBase"]
[PlyCount "62"]
[EventDate "2022.10.29"]
[EventType "team-tourn"]
[EventCountry "DEN"]
[SourceTitle "playchess.com"]
[Source "ChessBase"]
[SourceQuality "1"]
[TimeControl "40/5400+30:1800+30"]

1. e4 {[%emt 0:00:33]} d6 {[%emt 0:01:00]} 2. d4 {[%emt 0:02:39]} Nf6 {[%emt 0:00:11]} 3. Nc3 {[%emt 0:00:05]} c6 {[%emt 0:00:13]} 4. f4 {[%emt 0:01:38]} Qa5 {[%emt 0:00:48]} 5. e5 {[%emt 0:02:28]} Ne4 {[%emt 0:00:52]} 6. Bd3 {[%emt 0:03:18]} Nxc3 {[%emt 0:17:25]} 7. Qd2 {[%emt 0:00:12]} d5 {[%emt 0:01:33]} 8. Qxc3 {[%emt 0:10:40]} Qxc3+ {[%emt 0:02:44]} 9. bxc3 {[%emt 0:00:04]} e6 {[%emt 0:00:50]} 10. c4 {[%emt 0:16:24]} c5 {[%emt 0:10:52]} 11. cxd5 {[%emt 0:04:40]} exd5 {[%emt 0:00:56]} 12. c3 {[%emt 0:04:39]} Nc6 {[%emt 0:02:13]} 13. Ne2 {[%emt 0:03:41]} Bd7 {[%emt 0:14:05]} 14. Rb1 {[%emt 0:03:36]} b6 {[%emt 0:06:01]} 15. Be3 {[%emt 0:01:14]} Be7 {[%emt 0:04:39]} 16. O-O {[%emt 0:06:12]} O-O {[%emt 0:07:40]} 17. dxc5 {[%emt 0:17:08]} Bxc5 {[%emt 0:00:08]} 18. Bxc5 {[%emt 0:04:12]} bxc5 {[%emt 0:00:14]} 19. Rb5 {[%emt 0:02:49]} Nb4 {[%emt 0:20:17]} 20. cxb4 {[%emt 0:04:23]} Bxb5 {[%emt 0:00:07]} 21. Bxb5 {[%emt 0:00:08]} cxb4 {[%emt 0:00:11]} 22. Bc6 {[%emt 0:04:06]} Rab8 {[%emt 0:00:41]} 23. Bxd5 {[%emt 0:02:04]} Rfd8 {[%emt 0:00:12]} 24. Rd1 {[%emt 0:00:42]} Kf8 {[%emt 0:01:07]} 25. Kf2 {[%emt 0:00:45]} a5 {[%emt 0:04:25]} 26. Ke3 {[%emt 0:02:59]} a4 {[%emt 0:00:25]} 27. Rd3 {[%emt 0:00:50]} Rdc8 {[%emt 0:01:27]} 28. Kd2 {[%emt 0:00:23]} Rc5 {[%emt 0:00:20]} 29. Be4 {[%emt 0:01:41]} h6 {[%emt 0:00:22]} 30. Rd5 {[%emt 0:00:26]} Rxd5+ {[%emt 0:00:13]} 31. Bxd5 {[%emt 0:00:09]} Rd8 {[%emt 0:00:01]} 0-1